bitfinex/quotes_BTCUSD_20241102
["timestamp","ask_amount","ask_price","bid_price","bid_amount"]
[1730512529144,0.24154204,69701.0,69700.0,0.001644]
[1730512529797,0.24154437,69701.0,69700.0,0.001644]
[1730512530469,0.33277331,69701.0,69700.0,0.001644]
[1730512531105,0.17706683,69701.0,69700.0,0.001644]
[1730512531352,0.33277501,69701.0,69700.0,0.001644]
[1730512531572,0.32777501,69701.0,69700.0,0.001644]
[1730512531796,0.10028439,69701.0,69700.0,0.26049539]
[1730512532015,0.10028439,69701.0,69700.0,0.37527239]
[1730512532016,0.02236233,69701.0,69700.0,0.37527239]
[1730512532891,0.05731208,69701.0,69700.0,0.37527239]
[1730512533110,0.02236233,69701.0,69700.0,0.37527239]
[1730512533958,0.03311699,69701.0,69700.0,0.37527239]
[1730512534620,0.06806963,69701.0,69700.0,0.37527239]
[1730512534825,0.07582551,69701.0,69700.0,0.37527239]
[1730512535034,0.07682551,69701.0,69700.0,0.37527239]
[1730512535250,0.06706963,69701.0,69700.0,0.37527239]
[1730512535451,0.05363154,69701.0,69700.0,0.37727239]
[1730512535682,0.04087426,69701.0,69700.0,0.37727239]
[1730512535902,0.0758354,69701.0,69700.0,0.37827239]
[1730512536971,0.05729507,69701.0,69700.0,0.37827239]
[1730512537767,0.05729507,69701.0,69700.0,0.48496893]
[1730512538667,0.07073495,69701.0,69700.0,0.48496893]
[1730512538902,0.07073495,69701.0,69700.0,0.48196893]
[1730512539097,0.07073495,69701.0,69700.0,0.48896893]
[1730512539300,0.07073495,69701.0,69700.0,0.49796893]
[1730512539836,0.05729507,69701.0,69700.0,0.49796893]
[1730512542465,0.05729507,69701.0,69700.0,0.39127239]
[1730512542876,0.04649558,69701.0,69700.0,0.39127239]
[1730512543346,0.05723986,69701.0,69700.0,0.39127239]
[1730512544098,0.03575129,69701.0,69700.0,0.39127239]
[1730512545394,0.05723986,69701.0,69700.0,0.39127239]
[1730512545606,0.02499663,69701.0,69700.0,0.39127239]
[1730512546673,0.01425235,69701.0,69700.0,0.39127239]
[1730512547110,0.04648176,69701.0,69700.0,0.39127239]
[1730512547326,0.02499319,69701.0,69700.0,0.39127239]
[1730512548609,0.03574092,69701.0,69700.0,0.39127239]
[1730512548816,0.01425235,69701.0,69700.0,0.39127239]
[1730512550131,0.03574092,69701.0,69700.0,0.39127239]
[1730512550398,0.000822,69701.0,69700.0,0.39127239]
[1730512550623,0.03573218,69701.0,69700.0,0.39127239]
[1730512550844,0.01424899,69701.0,69700.0,0.39127239]
[1730512551272,0.03573218,69701.0,69700.0,0.39127239]
[1730512553605,0.000822,69701.0,69700.0,0.39127239]
[1730512553807,0.01425237,69701.0,69700.0,0.39127239]
[1730512554023,0.03574097,69701.0,69700.0,0.39127239]
[1730512555090,0.01425237,69701.0,69700.0,0.39127239]
[1730512555289,0.03574097,69701.0,69700.0,0.39127239]
[1730512555970,0.04917472,69701.0,69700.0,0.39127239]
[1730512559427,0.04920927,69701.0,69700.0,0.39127239]
[1730512560734,0.01426928,69701.0,69700.0,0.39127239]
[1730512560975,0.04923221,69701.0,69700.0,0.39127239]
[1730512562230,0.04923819,69701.0,69700.0,0.39127239]
[1730512570405,0.04928584,69701.0,69700.0,0.39127239]
[1730512574141,0.03582366,69701.0,69700.0,0.39127239]
[1730512574430,0.0492862,69701.0,69700.0,0.39127239]
[1730512574596,0.04928708,69701.0,69700.0,0.39127239]
[1730512576133,0.04928708,69701.0,69700.0,0.21977239]
[1730512583809,0.03582456,69701.0,69700.0,0.21977239]
[1730512585501,0.05404407,69701.0,69700.0,0.21977239]
[1730512585930,0.03582456,69701.0,69700.0,0.21977239]
[1730512590366,0.03582456,69701.0,69700.0,0.24849239]
[1730512590575,0.03582456,69701.0,69700.0,0.21977239]
[1730512591976,0.000822,69701.0,69700.0,0.21977239]
[1730512592181,0.03583096,69701.0,69700.0,0.21977239]
[1730512595561,0.000822,69701.0,69700.0,0.21977239]
[1730512598024,0.04929583,69701.0,69700.0,0.21977239]
[1730512599237,0.04121685,69701.0,69700.0,0.21977239]
[1730512600254,0.06276077,69701.0,69700.0,0.21977239]
[1730512601622,0.0358309,69701.0,69700.0,0.21977239]
[1730512601794,0.04929587,69701.0,69700.0,0.21977239]
[1730512608335,0.01428695,69701.0,69700.0,0.21977239]
[1730512608528,0.06006805,69701.0,69700.0,0.21977239]
[1730512611248,0.02505897,69701.0,69700.0,0.21977239]
[1730512611463,0.06006807,69701.0,69700.0,0.21977239]
[1730512611677,0.04660312,69701.0,69700.0,0.21977239]
[1730512611883,0.01159402,69701.0,69700.0,0.21977239]
[1730512612173,0.04660312,69701.0,69700.0,0.21977239]
[1730512612382,0.04660316,69701.0,69700.0,0.21977239]
[1730512619371,0.04660352,69701.0,69700.0,0.21977239]
[1730512622274,0.01159403,69701.0,69700.0,0.21977239]
[1730512622468,0.04660345,69701.0,69700.0,0.21977239]
[1730512623096,0.06405139,69701.0,69700.0,0.21977239]
[1730512623514,0.06405139,69701.0,69700.0,0.10499539]
[1730512623780,0.06405139,69701.0,69700.0,0.21977239]
[1730512629158,0.06405139,69701.0,69700.0,0.017644]
[1730512629368,0.16805436,69701.0,69700.0,0.017644]
[1730512629545,0.17882679,69701.0,69700.0,0.017644]
[1730512630815,0.06405179,69701.0,69700.0,0.017644]
[1730512631694,0.06405179,69701.0,69700.0,0.10499539]
[1730512633092,0.01826994,69701.0,69700.0,0.10499539]
[1730512633310,0.06404041,69701.0,69700.0,0.10499539]
[1730512636747,0.02903946,69701.0,69700.0,0.10499539]
[1730512636948,0.0532668,69701.0,69700.0,0.21977239]
[1730512637154,0.06403506,69701.0,69700.0,0.21977239]
[1730512639505,0.0640335,69701.0,69700.0,0.21977239]
[1730512640914,0.04658556,69701.0,69700.0,0.21977239]
[1730512644001,0.04658515,69701.0,69700.0,0.21977239]
[1730512644468,0.04658454,69701.0,69700.0,0.21977239]
[1730512649733,0.04658627,69701.0,69700.0,0.21977239]
[1730512650637,0.04658627,69701.0,69700.0,0.22167239]
[1730512651279,0.03581862,69701.0,69700.0,0.22167239]
[1730512651513,0.04658688,69701.0,69700.0,0.22167239]
[1730512658525,0.000822,69701.0,69700.0,0.22167239]
[1730512658741,0.03582276,69701.0,69700.0,0.22167239]
[1730512658959,0.04659222,69701.0,69700.0,0.22167239]
[1730512659851,0.0644177,69701.0,69700.0,0.22167239]
[1730512660505,0.06441802,69701.0,69700.0,0.22167239]
[1730512663360,0.01864748,69701.0,69700.0,0.22167239]
[1730512663581,0.02941743,69701.0,69700.0,0.22167239]
[1730512665371,0.06442055,69701.0,69700.0,0.22167239]
[1730512668776,0.02941743,69701.0,69700.0,0.22167239]
[1730512668987,0.05365256,69701.0,69700.0,0.22167239]
[1730512669175,0.06442335,69701.0,69700.0,0.22167239]
[1730512672105,0.04660047,69701.0,69700.0,0.22167239]
[1730512672794,0.04660047,69701.0,69700.0,0.62857903]
[1730512673275,0.01428626,69701.0,69700.0,0.67161319]
[1730512673504,0.000822,69701.0,69700.0,0.69313028]
[1730512673743,0.000822,69701.0,69700.0,0.84437346]
[1730512673953,0.000822,69701.0,69700.0,0.68613028]
[1730512674172,0.000822,69701.0,69700.0,0.70013028]
[1730512674388,0.000822,69701.0,69700.0,0.81703963]
[1730512674597,0.000822,69701.0,69700.0,0.77405633]
[1730512674813,0.000822,69701.0,69700.0,0.76005633]
[1730512675253,0.000822,69701.0,69700.0,0.80302841]
[1730512675490,0.000822,69701.0,69700.0,0.66455111]
[1730512675724,0.000822,69701.0,69700.0,0.65555111]
[1730512676134,0.000822,69701.0,69700.0,0.66955111]
[1730512676351,0.000822,69701.0,69700.0,0.63112799]
[1730512676568,0.000822,69701.0,69700.0,0.64512799]
[1730512676996,0.000822,69701.0,69700.0,0.63112799]
[1730512677492,0.000822,69701.0,69700.0,0.79060529]
[1730512677722,0.000822,69701.0,69700.0,0.83157737]
[1730512678160,0.000822,69701.0,69700.0,0.78860529]
[1730512678802,0.000822,69701.0,69700.0,0.77460529]
[1730512679022,0.000822,69701.0,69700.0,0.76060529]
[1730512679235,0.000822,69701.0,69700.0,0.77460529]
[1730512679678,0.000822,69701.0,69700.0,0.88860529]
[1730512679904,0.000822,69701.0,69700.0,0.87460529]
[1730512680332,0.000822,69701.0,69700.0,0.88860529]
[1730512682743,0.000822,69701.0,69700.0,1.04790318]
[1730512682957,0.000822,69701.0,69700.0,1.11024958]
[1730512683356,0.000822,69701.0,69700.0,0.93895169]
[1730512683777,0.000822,69701.0,69700.0,0.87460529]
[1730512683993,0.000822,69701.0,69700.0,0.88860529]
[1730512686308,0.000822,69701.0,69700.0,0.93347766]
[1730512687096,0.000822,69701.0,69700.0,0.89560529]
[1730512687304,0.000822,69701.0,69700.0,0.93847246]
[1730512687615,0.000822,69701.0,69700.0,0.93347246]
[1730512687820,0.000822,69701.0,69700.0,0.93847246]
[1730512688562,0.000822,69701.0,69700.0,0.93846762]
[1730512688911,0.000822,69701.0,69700.0,0.93846896]
[1730512690777,0.000822,69701.0,69700.0,0.93846163]
[1730512691375,0.000822,69701.0,69700.0,0.89560529]
[1730512692809,0.000822,69701.0,69700.0,0.93846163]
[1730512695276,0.000822,69701.0,69700.0,0.93845611]
[1730512699250,0.000822,69701.0,69700.0,0.93845343]
[1730512702527,0.000822,69701.0,69700.0,0.89560529]
[1730512702948,0.000822,69701.0,69700.0,0.93845393]
[1730512703358,0.000822,69701.0,69700.0,0.93845782]
[1730512704204,0.000822,69701.0,69700.0,0.89560529]
[1730512706343,0.000822,69701.0,69700.0,0.95988408]
[1730512708042,0.000822,69701.0,69700.0,1.11721903]
[1730512708244,0.000822,69701.0,69700.0,1.05294024]
[1730512710639,0.000822,69701.0,69700.0,1.1386453]
[1730512712391,0.000822,69701.0,69700.0,1.05294024]
[1730512713463,0.000822,69701.0,69700.0,1.07594024]
[1730512713898,0.000822,69701.0,69700.0,1.18307156]
[1730512714321,0.01345318,69715.0,69714.0,0.114754]
[1730512714536,0.000822,69717.0,69716.0,0.114751]
[1730512714763,0.01427384,69717.0,69716.0,0.25820625]
[1730512714974,0.000822,69717.0,69716.0,0.25820625]
[1730512716512,0.000822,69717.0,69716.0,0.27220625]
[1730512716718,0.000822,69717.0,69716.0,0.39811531]
[1730512717370,0.000822,69717.0,69716.0,0.41211531]
[1730512718229,0.000822,69717.0,69716.0,0.28620625]
[1730512721080,0.000822,69717.0,69716.0,0.29069196]
[1730512725312,0.000822,69717.0,69716.0,0.28569196]
[1730512725516,0.000822,69717.0,69716.0,0.37304335]
[1730512727289,0.077322,69723.0,69716.0,0.25829235]
[1730512727509,0.077322,69723.0,69722.0,0.20209239]
[1730512727715,0.1042052,69723.0,69722.0,0.20209239]
[1730512728676,0.1042052,69723.0,69722.0,0.21409239]
[1730512728876,0.10420534,69723.0,69722.0,0.21409239]
[1730512729477,0.10420534,69723.0,69722.0,0.126741]
[1730512730406,0.12571416,69723.0,69722.0,0.136741]
[1730512736285,0.0907636,69723.0,69722.0,0.136741]
[1730512736530,0.12572448,69723.0,69722.0,0.136741]
[1730512737956,0.12073231,69723.0,69722.0,0.136741]
[1730512739081,0.04923131,69723.0,69722.0,0.136741]
[1730512739963,0.01426937,69723.0,69722.0,0.136741]
[1730512740167,0.04923514,69723.0,69722.0,0.136741]
[1730512746254,0.04923514,69723.0,69722.0,0.131741]
[1730512746463,0.04924084,69723.0,69722.0,0.131741]
[1730512749680,0.04924377,69723.0,69722.0,0.131741]
[1730512751207,0.04924377,69723.0,69722.0,0.133383]
[1730512752504,0.14584377,69723.0,69722.0,0.023642]
[1730512752725,0.14584377,69723.0,69722.0,0.138383]
[1730512752726,0.22754377,69723.0,69722.0,0.138383]
[1730512752948,0.24555563,69723.0,69722.0,0.128383]
[1730512753435,0.24555563,69723.0,69722.0,0.134383]
[1730512753805,0.24555563,69723.0,69722.0,0.128383]
[1730512754017,0.24555563,69723.0,69722.0,0.116383]
[1730512754227,0.24555563,69723.0,69722.0,0.124383]
[1730512754699,0.24555563,69723.0,69722.0,0.116383]
[1730512754911,0.24555563,69723.0,69722.0,0.119383]
[1730512755135,0.24555563,69723.0,69722.0,0.121383]
[1730512756636,0.210586,69723.0,69722.0,0.121383]
[1730512756846,0.24556417,69723.0,69722.0,0.121383]
[1730512757520,0.24556516,69723.0,69722.0,0.121383]
[1730512758650,0.16386516,69723.0,69722.0,0.121383]
[1730512760466,0.16387673,69723.0,69722.0,0.121383]
[1730512763781,0.11543286,69723.0,69722.0,0.121383]
[1730512763982,0.16387457,69723.0,69722.0,0.121383]
[1730512767847,0.16387392,69723.0,69722.0,0.121383]
[1730512768849,0.16387392,69723.0,69722.0,0.006642]
[1730512771212,0.06727392,69723.0,69722.0,0.121383]
[1730512771420,0.04926206,69723.0,69722.0,0.203283]
[1730512772046,0.04926206,69723.0,69722.0,0.201283]
[1730512772492,0.04926206,69723.0,69722.0,0.203283]
[1730512772915,0.04926206,69723.0,69722.0,0.201283]
[1730512773130,0.04926206,69723.0,69722.0,0.198283]
[1730512773330,0.04926206,69723.0,69722.0,0.208283]
[1730512773693,0.06727301,69723.0,69722.0,0.208283]
[1730512773904,0.04926206,69723.0,69722.0,0.208283]
[1730512774310,0.01427703,69723.0,69722.0,0.208283]
[1730512774511,0.04926339,69723.0,69722.0,0.208283]
[1730512774733,0.06727434,69723.0,69722.0,0.208283]
[1730512775160,0.07803965,69723.0,69722.0,0.208283]
[1730512777728,0.02959726,69723.0,69722.0,0.208283]
[1730512777923,0.07804386,69723.0,69722.0,0.208283]
[1730512779994,0.07804577,69723.0,69722.0,0.208283]
[1730512781389,0.03228934,69723.0,69722.0,0.208283]
[1730512781567,0.06728543,69723.0,69722.0,0.208283]
[1730512785121,0.01883195,69723.0,69722.0,0.208283]
[1730512785287,0.06728979,69723.0,69722.0,0.208283]
[1730512789110,0.01883195,69723.0,69722.0,0.208283]
[1730512789332,0.06728994,69723.0,69722.0,0.208283]
[1730512792251,0.01883195,69723.0,69722.0,0.208283]
[1730512792559,0.05382953,69723.0,69722.0,0.208283]
[1730512792732,0.06729014,69723.0,69722.0,0.208283]
[1730512792949,0.06729014,69723.0,69722.0,0.126383]
[1730512799625,0.06729038,69723.0,69722.0,0.126383]
[1730512799795,0.06729101,69723.0,69722.0,0.126383]
[1730512805441,0.05383009,69723.0,69722.0,0.126383]
[1730512805619,0.06729091,69723.0,69722.0,0.126383]
[1730512811694,0.06729091,69723.0,69722.0,0.205183]
[1730512812768,0.05383009,69723.0,69722.0,0.205183]
[1730512812957,0.06729093,69723.0,69722.0,0.205183]
[1730512813174,0.06729098,69723.0,69722.0,0.205183]
[1730512814664,0.06729093,69723.0,69722.0,0.205183]
[1730512816131,0.03229277,69723.0,69722.0,0.205183]
[1730512816338,0.04575359,69723.0,69722.0,0.205183]
[1730512816545,0.08075169,69723.0,69722.0,0.205183]
[1730512817294,0.08075168,69723.0,69722.0,0.205183]
[1730512818294,0.08075167,69723.0,69722.0,0.205183]
[1730512818518,0.06274072,69723.0,69722.0,0.205183]
[1730512818738,0.08075443,69723.0,69722.0,0.205183]
[1730512819833,0.04575632,69723.0,69722.0,0.205183]
[1730512820035,0.08075437,69723.0,69722.0,0.205183]
[1730512820251,0.06274066,69723.0,69722.0,0.205183]
[1730512820455,0.08074238,69723.0,69722.0,0.205183]
[1730512820906,0.06274066,69723.0,69722.0,0.205183]
[1730512821347,0.06274066,69723.0,69722.0,0.43683825]
[1730512821988,0.08075434,69723.0,69722.0,0.43683825]
[1730512822419,0.08075434,69723.0,69722.0,0.42683825]
[1730512822988,0.08075434,69723.0,69722.0,0.45483825]
[1730512823409,0.05921708,69723.0,69722.0,0.45483825]
[1730512823586,0.05920762,69723.0,69722.0,0.45483825]
[1730512825819,0.0457468,69723.0,69722.0,0.45483825]
[1730512826265,0.02773312,69723.0,69722.0,0.45483825]
[1730512827955,0.04924753,69723.0,69722.0,0.45483825]
[1730512828379,0.02773312,69723.0,69722.0,0.45483825]
[1730512830264,0.02771781,69723.0,69722.0,0.45483825]
[1730512832657,0.02727236,69723.0,69722.0,0.45483825]
[1730512833679,0.00037638,69723.0,69722.0,0.45483825]
[1730512833883,0.01382088,69723.0,69722.0,0.45483825]
[1730512834101,0.02726538,69723.0,69722.0,0.45483825]
[1730512837585,0.02726512,69723.0,69722.0,0.45483825]
[1730512840966,0.01382075,69723.0,69722.0,0.45483825]
[1730512841200,0.01382141,69723.0,69722.0,0.45483825]
[1730512841362,0.02726652,69723.0,69722.0,0.45483825]
[1730512845018,0.04878174,69723.0,69722.0,0.45483825]
[1730512845241,0.02726652,69723.0,69722.0,0.45483825]
[1730512845438,0.00037638,69723.0,69722.0,0.45483825]
[1730512846719,0.01382467,69723.0,69722.0,0.45483825]
[1730512847070,0.04879038,69723.0,69722.0,0.45483825]
[1730512847268,0.03534209,69723.0,69722.0,0.45483825]
[1730512847690,0.01382554,69723.0,69722.0,0.45483825]
[1730512848183,0.00037638,69723.0,69722.0,0.45483825]
[1730512848590,0.00037638,69723.0,69722.0,0.58757845]
[1730512849366,0.01382822,69723.0,69722.0,0.45483825]
[1730512849593,0.05956453,69723.0,69722.0,0.45483825]
[1730512851916,0.05958264,69723.0,69722.0,0.45483825]
[1730512855339,0.05959036,69723.0,69722.0,0.45483825]
[1730512858763,0.05959036,69723.0,69722.0,0.223183]
[1730512858944,0.05959036,69723.0,69722.0,0.144383]
[1730512858945,0.07797106,69723.0,69722.0,0.144383]
[1730512859357,0.04297625,69723.0,69722.0,0.144383]
[1730512859559,0.07797187,69723.0,69722.0,0.144383]
[1730512861315,0.07796851,69723.0,69722.0,0.144383]
[1730512862857,0.07796683,69723.0,69722.0,0.144383]
[1730512865024,0.0779595,69723.0,69722.0,0.144383]
[1730512868387,0.06450262,69723.0,69722.0,0.144383]
[1730512868556,0.05958488,69723.0,69722.0,0.144383]
[1730512872572,0.06736455,69723.0,69722.0,0.224683]
[1730512872777,0.05958119,69723.0,69722.0,0.224683]
[1730512873195,0.04881666,69723.0,69722.0,0.224683]
[1730512873406,0.05958119,69723.0,69722.0,0.224683]
[1730512873620,0.04881666,69723.0,69722.0,0.224683]
[1730512875100,0.04881695,69723.0,69722.0,0.224683]
[1730512879428,0.04881788,69723.0,69722.0,0.224683]
[1730512882963,0.04881946,69723.0,69722.0,0.224683]
[1730512883187,0.00037638,69723.0,69722.0,0.224683]
[1730512883401,0.04882,69723.0,69722.0,0.224683]
[1730512885340,0.04882014,69723.0,69722.0,0.224683]
[1730512886454,0.00037638,69723.0,69722.0,0.224683]
[1730512886651,0.04882169,69723.0,69722.0,0.224683]
[1730512889538,0.04882169,69723.0,69722.0,0.35422653]
[1730512889968,0.03536466,69723.0,69722.0,0.35422653]
[1730512890194,0.04882107,69723.0,69722.0,0.35422653]
[1730512892330,0.04881681,69723.0,69722.0,0.35422653]
[1730512893607,0.04881111,69723.0,69722.0,0.35422653]
[1730512893843,0.03535702,69723.0,69722.0,0.35422653]
[1730512894059,0.04881117,69723.0,69722.0,0.224683]
[1730512899484,0.02728462,69723.0,69722.0,0.224683]
[1730512899800,0.04881206,69723.0,69722.0,0.224683]
[1730512900653,0.04881288,69723.0,69722.0,0.224683]
[1730512902864,0.02728544,69723.0,69722.0,0.36313825]
[1730512903073,0.02728544,69723.0,69722.0,0.59192031]
[1730512904589,0.02728624,69723.0,69722.0,0.59192031]
[1730512907945,0.01383127,69723.0,69722.0,0.59192031]
[1730512908153,0.00037638,69723.0,69722.0,0.6348011]
[1730512908593,0.00037638,69723.0,69722.0,0.59192031]
[1730512909227,0.00037638,69723.0,69722.0,0.6348011]
[1730512909435,0.00037638,69723.0,69722.0,0.81943783]
[1730512909644,0.00037638,69723.0,69722.0,0.86231863]
[1730512909844,0.00037638,69723.0,69722.0,0.86011665]
[1730512910194,0.00037638,69723.0,69722.0,0.96720772]
[1730512910395,0.00037638,69723.0,69722.0,0.86011665]
[1730512910602,0.00037638,69723.0,69722.0,0.86004705]
[1730512910802,0.000822,69730.0,69722.0,0.86004705]
[1730512910803,0.000822,69730.0,69729.0,0.114729]
[1730512911049,0.000822,69730.0,69729.0,0.72839066]
[1730512911250,0.000822,69730.0,69729.0,0.72552275]
[1730512911654,0.000822,69730.0,69729.0,0.68270013]
[1730512912060,0.000822,69730.0,69729.0,0.69670013]
[1730512912267,0.000822,69730.0,69729.0,0.93387414]
[1730512912521,0.21707513,69741.0,69734.0,0.55577517]
[1730512912719,0.21707513,69741.0,69734.0,0.87548101]
[1730512912886,0.21707513,69741.0,69734.0,0.87548086]
[1730512913227,0.21707513,69741.0,69734.0,0.97548086]
[1730512913425,0.21707513,69741.0,69734.0,0.88812947]
[1730512913649,0.21707513,69741.0,69734.0,0.84535633]
[1730512914652,0.21707513,69741.0,69734.0,0.85935633]
[1730512916102,0.21707513,69741.0,69734.0,0.73487903]
[1730512917432,0.21707513,69741.0,69734.0,0.73941995]
[1730512921048,0.21707513,69741.0,69734.0,0.55286856]
[1730512921228,0.21707513,69741.0,69734.0,0.64021995]
[1730512922783,0.21707513,69741.0,69734.0,0.63567903]
[1730512923268,3.367424,69742.0,69734.0,0.36852764]
[1730512923485,0.21707513,69741.0,69734.0,0.45587903]
[1730512923960,0.21707513,69741.0,69734.0,0.36852764]
[1730512924846,0.21707513,69741.0,69734.0,0.23007239]
[1730512924847,0.114714,69739.0,69734.0,0.23007239]
[1730512925068,0.0966,69736.0,69734.0,0.23007239]
[1730512925285,0.02006433,69735.0,69734.0,0.23007239]
[1730512931579,0.02006433,69735.0,69734.0,0.11535139]
[1730512931776,0.1616139,69735.0,69734.0,0.028]
[1730512932721,0.1616139,69735.0,69734.0,0.014]
[1730512933140,0.1616139,69735.0,69734.0,0.025]
[1730512933983,0.1616139,69735.0,69734.0,0.011]
[1730512934188,0.1616139,69735.0,69734.0,0.024]
[1730512934390,0.1616139,69735.0,69734.0,0.011]
[1730512934823,0.14820446,69735.0,69734.0,0.011]
[1730512935044,0.16162459,69735.0,69734.0,0.015]
[1730512935223,0.16162459,69735.0,69734.0,0.004]
[1730512935668,0.16162459,69735.0,69734.0,0.007]
[1730512936675,0.16162459,69735.0,69734.0,0.004]
[1730512936826,0.04690459,69735.0,69730.0,0.001644]
[1730512937036,0.114725,69732.0,69730.0,0.001644]
[1730512937235,0.04607256,69731.0,69730.0,0.001644]
[1730512938457,0.04607774,69731.0,69730.0,0.005644]
[1730512938866,0.04607774,69731.0,69730.0,0.001644]
[1730512939491,0.04607774,69731.0,69730.0,0.004644]
[1730512940158,0.04607774,69731.0,69730.0,0.008644]
[1730512941941,0.0192323,69731.0,69730.0,0.008644]
[1730512942157,0.0460768,69731.0,69730.0,0.008644]
[1730512943731,0.0460768,69731.0,69730.0,0.123372]
[1730512944194,0.0268445,69731.0,69730.0,0.123372]
[1730512944624,0.04608262,69731.0,69730.0,0.123372]
[1730512946198,0.03830412,69731.0,69730.0,0.123372]
[1730512949514,0.03266037,69731.0,69730.0,0.123372]
[1730512952386,0.03251697,69731.0,69730.0,0.123372]
[1730512952599,0.03251697,69731.0,69730.0,0.19845804]
[1730512952821,0.03251697,69731.0,69730.0,0.27965804]
[1730512952822,0.01327885,69731.0,69730.0,0.27965804]
[1730512956439,0.01327885,69731.0,69730.0,0.41811329]
[1730512957238,0.01327885,69731.0,69730.0,0.34302725]
[1730512958091,0.02672426,69731.0,69730.0,0.34302725]
[1730512959667,0.000822,69735.0,69734.0,0.114721]
[1730512959872,0.000822,69735.0,69734.0,0.20207239]
[1730512960093,0.03350954,69735.0,69734.0,0.20207239]
[1730512960518,0.01427077,69735.0,69734.0,0.20207239]
[1730512960945,0.01527077,69735.0,69734.0,0.20207239]
[1730512963304,0.01527615,69735.0,69734.0,0.20207239]
[1730512963533,0.01427615,69735.0,69734.0,0.32237955]
[1730512963748,0.01427615,69735.0,69734.0,0.49017955]
[1730512963988,0.03352209,69735.0,69734.0,0.50317955]
[1730512964240,0.01427615,69735.0,69734.0,0.50317955]
[1730512964456,0.01427615,69735.0,69734.0,0.49717955]
[1730512964664,0.0469741,69735.0,69734.0,0.46422378]
[1730512964865,0.02772816,69735.0,69734.0,0.47422378]
[1730512965086,0.0469741,69735.0,69734.0,0.47422378]
[1730512965497,0.0469741,69735.0,69734.0,0.46722378]
[1730512965915,0.0469741,69735.0,69734.0,0.47922378]
[1730512966738,0.04696891,69735.0,69734.0,0.47922378]
[1730512968104,0.04696891,69735.0,69734.0,0.58748736]
[1730512970250,0.04696651,69735.0,69734.0,0.58748736]
[1730512970741,0.04696002,69735.0,69734.0,0.58748736]
[1730512972538,0.04696002,69735.0,69734.0,0.47922378]
[1730512972703,0.02006794,69735.0,69734.0,0.47922378]
[1730512972948,0.04695858,69735.0,69734.0,0.39187239]
[1730512973168,0.04695858,69735.0,69734.0,0.47922378]
[1730512973385,0.04695858,69735.0,69734.0,0.39187239]
[1730512974060,0.04695855,69735.0,69734.0,0.39187239]
[1730512974283,0.04695855,69735.0,69734.0,0.47922378]
[1730512974997,0.04695855,69735.0,69734.0,0.39187239]
[1730512975650,0.04695855,69735.0,69734.0,0.47922378]
[1730512978120,0.04695855,69735.0,69734.0,0.29907239]
[1730512981309,0.02006794,69735.0,69734.0,0.29907239]
[1730512981447,0.04696282,69735.0,69734.0,0.29907239]
[1730512983837,0.04696596,69735.0,69734.0,0.29907239]
[1730512991521,0.03351695,69735.0,69734.0,0.38642378]
[1730512991731,0.04696956,69735.0,69734.0,0.38642378]
[1730512991952,0.02006794,69735.0,69734.0,0.38642378]
[1730512992193,0.04697316,69735.0,69734.0,0.38642378]
[1730512992431,0.04697316,69735.0,69734.0,0.022]
[1730512992656,0.16169316,69735.0,69734.0,0.022]
[1730512994318,0.20472489,69735.0,69734.0,0.022]
[1730512994539,0.16169316,69735.0,69734.0,0.022]
[1730512999457,0.16168189,69735.0,69734.0,0.022]
[1730513005729,0.13478794,69735.0,69734.0,0.022]
[1730513005950,0.16166784,69735.0,69734.0,0.022]
[1730513007031,0.13478794,69735.0,69734.0,0.022]
[1730513007253,0.16166782,69735.0,69734.0,0.022]
[1730513015036,0.16167386,69735.0,69734.0,0.022]
[1730513018446,0.14823455,69735.0,69734.0,0.022]
[1730513018668,0.16168116,69735.0,69734.0,0.022]
[1730513022260,0.1617012,69735.0,69734.0,0.022]
[1730513025624,0.20470875,69735.0,69734.0,0.022]
[1730513025846,0.1617012,69735.0,69734.0,0.022]
[1730513026297,0.16169855,69735.0,69734.0,0.022]
[1730513028089,0.16169831,69735.0,69734.0,0.022]
[1730513028536,0.204708,69735.0,69734.0,0.022]
[1730513029866,0.16169831,69735.0,69734.0,0.022]
[1730513030512,0.204708,69735.0,69734.0,0.022]
[1730513032096,0.2047161,69735.0,69734.0,0.022]
[1730513032341,0.16169831,69735.0,69734.0,0.022]
[1730513032551,0.2047161,69735.0,69734.0,0.022]
[1730513032990,0.19126068,69735.0,69734.0,0.022]
[1730513033205,0.20471494,69735.0,69734.0,0.022]
[1730513033637,0.16169715,69735.0,69734.0,0.022]
[1730513035090,0.20472394,69735.0,69734.0,0.022]
[1730513035732,0.16169715,69735.0,69734.0,0.022]
[1730513035982,0.22622384,69735.0,69734.0,0.022]
[1730513037522,0.22622311,69735.0,69734.0,0.022]
[1730513038420,0.31894604,69735.0,69734.0,0.022]
[1730513038634,0.3189097,69735.0,69734.0,0.022]
[1730513040805,0.31887717,69735.0,69734.0,0.022]
[1730513041876,0.40498467,69735.0,69734.0,0.022]
[1730513043355,0.37807631,69735.0,69734.0,0.022]
[1730513043559,0.40498617,69735.0,69734.0,0.022]
[1730513047235,0.40498679,69735.0,69734.0,0.022]
[1730513047454,0.39153155,69735.0,69734.0,0.022]
[1730513047654,0.40498703,69735.0,69734.0,0.022]
[1730513049468,0.40496725,69735.0,69734.0,0.022]
[1730513049666,0.40501874,69735.0,69734.0,0.022]
[1730513050544,0.31890975,69735.0,69734.0,0.022]
[1730513051017,0.40501874,69735.0,69734.0,0.022]
[1730513051443,0.31890975,69735.0,69734.0,0.022]
[1730513051673,0.40501874,69735.0,69734.0,0.022]
[1730513053185,0.40502206,69735.0,69734.0,0.022]
[1730513053820,0.31891307,69735.0,69734.0,0.022]
[1730513054255,0.40502206,69735.0,69734.0,0.022]
[1730513054652,0.37810802,69735.0,69734.0,0.022]
[1730513054894,0.4050256,69735.0,69734.0,0.022]
[1730513056430,0.16170552,69735.0,69734.0,0.022]
[1730513056643,0.4051197,69735.0,69734.0,0.022]
[1730513058728,0.40511964,69735.0,69734.0,0.022]
[1730513058936,0.40488758,69735.0,69734.0,0.022]
[1730513063472,0.24781993,69735.0,69734.0,0.022]
[1730513063660,0.40491163,69735.0,69734.0,0.022]
[1730513066097,0.37799411,69735.0,69734.0,0.022]
[1730513066310,0.40491355,69735.0,69734.0,0.022]
[1730513066524,0.31879418,69735.0,69734.0,0.022]
[1730513071835,0.31865087,69735.0,69734.0,0.022]
[1730513072302,0.30519115,69735.0,69734.0,0.022]
[1730513072549,0.3186511,69735.0,69734.0,0.022]
[1730513072996,0.31869168,69735.0,69734.0,0.022]
[1730513073632,0.29177201,69735.0,69734.0,0.022]